[Event "Titled Tuesday Blitz May 03 Early 2022"]
[White "Dronavalli, Harika"]
[Black "Meshkovs, Nikita"]
[WhiteFideId "5015197"]
[BlackFideId "11602740"]
[WhiteElo "2382"]
[BlackElo "2506"]
[Result "0-1"]
[Round "08"]
[TimeControl "180+1"]
[Date "2022.05.03"]
[WhiteClock "0:00:12"]
[BlackClock "0:00:04"]

1. e4 {[%clk 0:03:00]}  c5 {[%clk 0:02:58]} 2. c3 {[%clk 0:03:01]}  Nf6 {[%clk 0:02:57]} 3. e5 {[%clk 0:03:01]}  Nd5 {[%clk 0:02:58]} 4. Nf3 {[%clk 0:03:01]}  Nc6 {[%clk 0:02:58]} 5. d4 {[%clk 0:03:00]}  cxd4 {[%clk 0:02:59]} 6. cxd4 {[%clk 0:03:00]}  d6 {[%clk 0:02:59]} 7. Bc4 {[%clk 0:02:59]}  dxe5 {[%clk 0:02:59]} 8. dxe5 {[%clk 0:02:37]}  Ndb4 {[%clk 0:02:59]} 9. Qxd8+ {[%clk 0:02:27]}  Nxd8 {[%clk 0:03:00]} 10. Na3 {[%clk 0:02:25]}  a6 {[%clk 0:02:51]} 11. Bd2 {[%clk 0:02:24]}  Ndc6 {[%clk 0:02:42]} 12. Nd4 {[%clk 0:01:56]}  Nxd4 {[%clk 0:02:04]} 13. Bxb4 {[%clk 0:01:56]}  Nc6 {[%clk 0:01:44]} 14. Bc3 {[%clk 0:01:53]}  e6 {[%clk 0:01:45]} 15. Be2 {[%clk 0:01:48]}  Bd7 {[%clk 0:01:34]} 16. Nc4 {[%clk 0:01:45]}  b5 {[%clk 0:01:19]} 17. Nb6 {[%clk 0:01:45]}  Rb8 {[%clk 0:01:17]} 18. Nxd7 {[%clk 0:01:45]}  Kxd7 {[%clk 0:01:17]} 19. O-O-O+ {[%clk 0:01:39]}  Kc7 {[%clk 0:01:17]} 20. Kb1 {[%clk 0:01:40]}  Bc5 {[%clk 0:01:09]} 21. f4 {[%clk 0:01:38]}  Rbd8 {[%clk 0:01:07]} 22. Bf3 {[%clk 0:01:38]}  Kb6 {[%clk 0:01:00]} 23. a3 {[%clk 0:01:31]}  Bd4 {[%clk 0:00:44]} 24. Bxc6 {[%clk 0:01:25]}  Bxc3 {[%clk 0:00:44]} 25. Bd7 {[%clk 0:01:24]}  Kc7 {[%clk 0:00:33]} 26. Bxe6 {[%clk 0:01:08]}  Bxe5 {[%clk 0:00:30]} 27. fxe5 {[%clk 0:01:07]}  fxe6 {[%clk 0:00:29]} 28. Rc1+ {[%clk 0:00:56]}  Kb6 {[%clk 0:00:29]} 29. Rc3 {[%clk 0:00:55]}  Rc8 {[%clk 0:00:23]} 30. Rg3 {[%clk 0:00:48]}  Rc7 {[%clk 0:00:18]} 31. Rd1 {[%clk 0:00:48]}  Re8 {[%clk 0:00:15]} 32. Rd6+ {[%clk 0:00:47]}  Kb7 {[%clk 0:00:15]} 33. Ka2 {[%clk 0:00:44]}  Ree7 {[%clk 0:00:16]} 34. Rgd3 {[%clk 0:00:44]}  Rc5 {[%clk 0:00:11]} 35. Rd7+ {[%clk 0:00:43]}  Rxd7 {[%clk 0:00:11]} 36. Rxd7+ {[%clk 0:00:44]}  Rc7 {[%clk 0:00:07]} 37. Rd6 {[%clk 0:00:39]}  Rc2 {[%clk 0:00:06]} 38. Rxe6 {[%clk 0:00:36]}  Rxg2 {[%clk 0:00:07]} 39. h4 {[%clk 0:00:37]}  h5 {[%clk 0:00:06]} 40. Kb3 {[%clk 0:00:36]}  a5 {[%clk 0:00:05]} 41. Kc3 {[%clk 0:00:33]}  Rg4 {[%clk 0:00:04]} 42. Rd6 {[%clk 0:00:26]}  b4+ {[%clk 0:00:04]} 43. axb4 {[%clk 0:00:26]}  axb4+ {[%clk 0:00:05]} 44. Kb3 {[%clk 0:00:26]}  Kc7 {[%clk 0:00:05]} 45. Ra6 {[%clk 0:00:23]}  Kd7 {[%clk 0:00:05]} 46. Rb6 {[%clk 0:00:20]}  Rxh4 {[%clk 0:00:04]} 47. Ka4 {[%clk 0:00:20]}  g5 {[%clk 0:00:03]} 48. Kb5 {[%clk 0:00:16]}  Re4 {[%clk 0:00:04]} 49. Rb8 {[%clk 0:00:15]}  Rxe5+ {[%clk 0:00:03]} 50. Kxb4 {[%clk 0:00:15]}  g4 {[%clk 0:00:03]} 51. Rg8 {[%clk 0:00:14]}  Ke6 {[%clk 0:00:03]} 52. Kc3 {[%clk 0:00:15]}  Kf7 {[%clk 0:00:04]} 53. Rd8 {[%clk 0:00:14]}  g3 {[%clk 0:00:04]} 54. Rd1 {[%clk 0:00:14]}  h4 {[%clk 0:00:05]} 55. Kd4 {[%clk 0:00:15]}  Rg5 {[%clk 0:00:04]} 56. Ke3 {[%clk 0:00:14]}  h3 {[%clk 0:00:04]} 57. Kf3 {[%clk 0:00:14]}  g2 {[%clk 0:00:03]} 58. Kf2 {[%clk 0:00:15]}  h2 {[%clk 0:00:04]} 59. Kf3 {[%clk 0:00:12]}  g1=Q {[%clk 0:00:04]} 0-1


[Site "https://www.chess.com"]

[Event "Titled Tuesday Blitz May 03 Early 2022"]
[White "Harshavardhan G B"]
[Black "Agasarov, Benik"]
[WhiteFideId "25059009"]
[BlackFideId "13314823"]
[WhiteElo "1831"]
[BlackElo "2527"]
[Result "1-0"]
[Round "08"]
[TimeControl "180+1"]
[Date "2022.05.03"]
[WhiteClock "0:01:15"]
[BlackClock "0:00:03"]

1. d4 {[%clk 0:03:00]}  Nf6 {[%clk 0:02:57]} 2. Nf3 {[%clk 0:02:55]}  e6 {[%clk 0:02:56]} 3. Bg5 {[%clk 0:02:53]}  d5 {[%clk 0:02:54]} 4. e3 {[%clk 0:02:50]}  Be7 {[%clk 0:02:54]} 5. Bd3 {[%clk 0:02:49]}  c5 {[%clk 0:02:54]} 6. c3 {[%clk 0:02:48]}  h6 {[%clk 0:02:53]} 7. Bh4 {[%clk 0:02:46]}  b6 {[%clk 0:02:54]} 8. Nbd2 {[%clk 0:02:45]}  O-O {[%clk 0:02:54]} 9. Qe2 {[%clk 0:02:45]}  a5 {[%clk 0:02:53]} 10. Ne5 {[%clk 0:02:44]}  Nfd7 {[%clk 0:02:49]} 11. Bxe7 {[%clk 0:02:42]}  Qxe7 {[%clk 0:02:50]} 12. f4 {[%clk 0:02:42]}  Ba6 {[%clk 0:02:50]} 13. Bxa6 {[%clk 0:02:39]}  Nxa6 {[%clk 0:02:50]} 14. O-O {[%clk 0:02:40]}  c4 {[%clk 0:02:44]} 15. e4 {[%clk 0:02:37]}  Nxe5 {[%clk 0:02:44]} 16. fxe5 {[%clk 0:02:38]}  Nc7 {[%clk 0:02:39]} 17. Rf2 {[%clk 0:02:35]}  b5 {[%clk 0:02:38]} 18. Raf1 {[%clk 0:02:34]}  a4 {[%clk 0:02:38]} 19. a3 {[%clk 0:02:33]}  Rad8 {[%clk 0:02:32]} 20. Qg4 {[%clk 0:02:31]}  Kh8 {[%clk 0:02:26]} 21. Qh5 {[%clk 0:02:28]}  Rd7 {[%clk 0:02:11]} 22. Rf3 {[%clk 0:02:24]}  Qg5 {[%clk 0:02:07]} 23. Qxg5 {[%clk 0:02:22]}  hxg5 {[%clk 0:02:08]} 24. Rg3 {[%clk 0:02:20]}  g6 {[%clk 0:01:51]} 25. Rxg5 {[%clk 0:02:18]}  Kg7 {[%clk 0:01:51]} 26. Rf3 {[%clk 0:02:15]}  Rh8 {[%clk 0:01:49]} 27. Rg4 {[%clk 0:02:13]}  Rh5 {[%clk 0:01:46]} 28. exd5 {[%clk 0:02:11]}  Nxd5 {[%clk 0:01:45]} 29. Ne4 {[%clk 0:02:10]}  Rf5 {[%clk 0:01:42]} 30. Nd6 {[%clk 0:02:05]}  Rxf3 {[%clk 0:01:41]} 31. gxf3 {[%clk 0:02:05]}  b4 {[%clk 0:01:41]} 32. axb4 {[%clk 0:02:02]}  f5 {[%clk 0:01:25]} 33. Rg2 {[%clk 0:01:52]}  a3 {[%clk 0:01:15]} 34. bxa3 {[%clk 0:01:49]}  Nxc3 {[%clk 0:01:12]} 35. Rc2 {[%clk 0:01:49]}  Nb1 {[%clk 0:01:11]} 36. Rxc4 {[%clk 0:01:44]}  Nxa3 {[%clk 0:01:11]} 37. Rc8 {[%clk 0:01:44]}  Ra7 {[%clk 0:00:35]} 38. b5 {[%clk 0:01:41]}  Nxb5 {[%clk 0:00:30]} 39. Nxb5 {[%clk 0:01:42]}  Ra1+ {[%clk 0:00:30]} 40. Kg2 {[%clk 0:01:42]}  g5 {[%clk 0:00:28]} 41. Rc7+ {[%clk 0:01:39]}  Kg6 {[%clk 0:00:28]} 42. Re7 {[%clk 0:01:39]}  Kh5 {[%clk 0:00:25]} 43. Rxe6 {[%clk 0:01:37]}  Ra2+ {[%clk 0:00:26]} 44. Kh3 {[%clk 0:01:26]}  Rf2 {[%clk 0:00:19]} 45. Kg3 {[%clk 0:01:25]}  Re2 {[%clk 0:00:19]} 46. Re8 {[%clk 0:01:25]}  f4+ {[%clk 0:00:19]} 47. Kh3 {[%clk 0:01:24]}  Rf2 {[%clk 0:00:18]} 48. Rh8+ {[%clk 0:01:21]}  Kg6 {[%clk 0:00:18]} 49. Rg8+ {[%clk 0:01:21]}  Kh5 {[%clk 0:00:16]} 50. Nd6 {[%clk 0:01:19]}  Rxf3+ {[%clk 0:00:14]} 51. Kg2 {[%clk 0:01:19]}  Rd3 {[%clk 0:00:15]} 52. Ne4 {[%clk 0:01:18]}  Rxd4 {[%clk 0:00:14]} 53. Nxg5 {[%clk 0:01:17]}  Rd2+ {[%clk 0:00:13]} 54. Kf3 {[%clk 0:01:16]}  Kh4 {[%clk 0:00:08]} 55. Ne4 {[%clk 0:01:14]}  Rd3+ {[%clk 0:00:08]} 56. Kxf4 {[%clk 0:01:13]}  Kh3 {[%clk 0:00:09]} 57. Rg3+ {[%clk 0:01:12]}  Rxg3 {[%clk 0:00:02]} 58. hxg3 {[%clk 0:01:13]}  Kg2 {[%clk 0:00:03]} 59. e6 {[%clk 0:01:14]}  Kh1 {[%clk 0:00:03]} 60. e7 {[%clk 0:01:15]} 1-0


[Site "https://www.chess.com"]

[Event "Titled Tuesday Blitz May 03 Early 2022"]
[White "Hirneise, Jens"]
[Black "Kosteniuk, Alexandra"]
[WhiteFideId "24614734"]
[BlackFideId "4128125"]
[WhiteElo "2359"]
[BlackElo "2469"]
[Result "0-1"]
[Round "08"]
[TimeControl "180+1"]
[Date "2022.05.03"]
[WhiteClock "0:00:01"]
[BlackClock "0:00:13"]

1. Nf3 {[%clk 0:03:00]}  Nf6 {[%clk 0:02:57]} 2. c4 {[%clk 0:03:00]}  e6 {[%clk 0:02:55]} 3. Nc3 {[%clk 0:02:59]}  d5 {[%clk 0:02:53]} 4. d4 {[%clk 0:02:59]}  dxc4 {[%clk 0:02:54]} 5. e3 {[%clk 0:02:51]}  a6 {[%clk 0:02:53]} 6. a4 {[%clk 0:02:49]}  b6 {[%clk 0:02:47]} 7. Bxc4 {[%clk 0:02:48]}  Bb7 {[%clk 0:02:46]} 8. O-O {[%clk 0:02:49]}  Bb4 {[%clk 0:02:42]} 9. Qe2 {[%clk 0:02:46]}  O-O {[%clk 0:02:39]} 10. Rd1 {[%clk 0:02:44]}  Qe7 {[%clk 0:02:37]} 11. Bd3 {[%clk 0:02:38]}  Nbd7 {[%clk 0:02:26]} 12. e4 {[%clk 0:02:37]}  e5 {[%clk 0:02:25]} 13. d5 {[%clk 0:02:25]}  Nh5 {[%clk 0:02:03]} 14. g3 {[%clk 0:02:18]}  g6 {[%clk 0:01:57]} 15. Bh6 {[%clk 0:02:15]}  Ng7 {[%clk 0:01:52]} 16. Nd2 {[%clk 0:01:49]}  Bc5 {[%clk 0:01:48]} 17. Nb3 {[%clk 0:01:40]}  Bd6 {[%clk 0:01:47]} 18. f3 {[%clk 0:01:21]}  f5 {[%clk 0:01:45]} 19. Rac1 {[%clk 0:01:16]}  Nc5 {[%clk 0:01:28]} 20. Nxc5 {[%clk 0:01:14]}  Bxc5+ {[%clk 0:01:29]} 21. Be3 {[%clk 0:01:08]}  Bxe3+ {[%clk 0:01:25]} 22. Qxe3 {[%clk 0:01:09]}  f4 {[%clk 0:01:26]} 23. gxf4 {[%clk 0:00:58]}  Rxf4 {[%clk 0:01:25]} 24. d6 {[%clk 0:00:56]}  cxd6 {[%clk 0:01:22]} 25. Bc4+ {[%clk 0:00:57]}  Kh8 {[%clk 0:01:20]} 26. Qxb6 {[%clk 0:00:47]}  Raf8 {[%clk 0:01:20]} 27. Be2 {[%clk 0:00:40]}  Ne8 {[%clk 0:01:10]} 28. Kh1 {[%clk 0:00:33]}  g5 {[%clk 0:01:05]} 29. Rg1 {[%clk 0:00:32]}  g4 {[%clk 0:01:03]} 30. Rxg4 {[%clk 0:00:23]}  Rxg4 {[%clk 0:01:03]} 31. fxg4 {[%clk 0:00:23]}  Nf6 {[%clk 0:01:01]} 32. Rf1 {[%clk 0:00:20]}  Ba8 {[%clk 0:00:53]} 33. Qb4 {[%clk 0:00:14]}  a5 {[%clk 0:00:42]} 34. Qc4 {[%clk 0:00:14]}  Rd8 {[%clk 0:00:28]} 35. g5 {[%clk 0:00:12]}  Nxe4 {[%clk 0:00:27]} 36. Nxe4 {[%clk 0:00:12]}  d5 {[%clk 0:00:27]} 37. Qc5 {[%clk 0:00:11]}  Qg7 {[%clk 0:00:26]} 38. Nd6 {[%clk 0:00:07]}  d4+ {[%clk 0:00:20]} 39. Bf3 {[%clk 0:00:07]}  Rf8 {[%clk 0:00:20]} 40. Bxa8 {[%clk 0:00:06]}  Rxf1+ {[%clk 0:00:20]} 41. Kg2 {[%clk 0:00:06]}  Rf8 {[%clk 0:00:20]} 42. Ne4 {[%clk 0:00:04]}  Rxa8 {[%clk 0:00:20]} 43. h4 {[%clk 0:00:05]}  Rf8 {[%clk 0:00:20]} 44. Qxa5 {[%clk 0:00:04]}  h6 {[%clk 0:00:16]} 45. Qd5 {[%clk 0:00:03]}  hxg5 {[%clk 0:00:16]} 46. hxg5 {[%clk 0:00:04]}  Rf4 {[%clk 0:00:16]} 47. Qd8+ {[%clk 0:00:03]}  Kh7 {[%clk 0:00:16]} 48. Qd5 {[%clk 0:00:02]}  Rg4+ {[%clk 0:00:12]} 49. Kh3 {[%clk 0:00:01]}  Rf4 {[%clk 0:00:13]} 0-1


[Site "https://www.chess.com"]

[Event "Titled Tuesday Blitz May 03 Early 2022"]
[White "Hnydiuk, Aleksander"]
[Black "Lamaze, Simon"]
[WhiteFideId "1109057"]
[BlackFideId "36069264"]
[WhiteElo "2374"]
[BlackElo "1999"]
[Result "1-0"]
[Round "08"]
[TimeControl "180+1"]
[Date "2022.05.03"]
[WhiteClock "0:00:06"]
[BlackClock "0:00:18"]

1. c4 {[%clk 0:03:00]}  e5 {[%clk 0:02:59]} 2. g3 {[%clk 0:03:00]}  Bc5 {[%clk 0:02:58]} 3. Bg2 {[%clk 0:02:59]}  d6 {[%clk 0:02:59]} 4. Nc3 {[%clk 0:02:57]}  a6 {[%clk 0:02:59]} 5. Nf3 {[%clk 0:02:57]}  Nc6 {[%clk 0:02:59]} 6. O-O {[%clk 0:02:57]}  h5 {[%clk 0:02:59]} 7. e3 {[%clk 0:02:44]}  Bg4 {[%clk 0:02:56]} 8. h3 {[%clk 0:02:42]}  Be6 {[%clk 0:02:39]} 9. d4 {[%clk 0:02:39]}  Bxc4 {[%clk 0:02:38]} 10. dxc5 {[%clk 0:02:31]}  Bxf1 {[%clk 0:02:39]} 11. Kxf1 {[%clk 0:02:14]}  dxc5 {[%clk 0:02:34]} 12. Qxd8+ {[%clk 0:02:05]}  Rxd8 {[%clk 0:02:35]} 13. b3 {[%clk 0:02:04]}  Nf6 {[%clk 0:02:30]} 14. Ba3 {[%clk 0:02:01]}  b6 {[%clk 0:02:29]} 15. Ke2 {[%clk 0:01:59]}  g6 {[%clk 0:02:23]} 16. Bb2 {[%clk 0:01:57]}  O-O {[%clk 0:02:16]} 17. Ng5 {[%clk 0:01:33]}  Nb4 {[%clk 0:02:09]} 18. Nge4 {[%clk 0:01:07]}  Nxe4 {[%clk 0:01:59]} 19. Bxe4 {[%clk 0:01:08]}  f5 {[%clk 0:02:00]} 20. a3 {[%clk 0:01:05]}  fxe4 {[%clk 0:01:36]} 21. axb4 {[%clk 0:01:05]}  cxb4 {[%clk 0:01:37]} 22. Nxe4 {[%clk 0:01:05]}  a5 {[%clk 0:01:38]} 23. Bxe5 {[%clk 0:01:03]}  c5 {[%clk 0:01:27]} 24. Bc7 {[%clk 0:00:49]}  Rde8 {[%clk 0:01:26]} 25. Nd6 {[%clk 0:00:49]}  Re6 {[%clk 0:01:24]} 26. Nc4 {[%clk 0:00:45]}  b5 {[%clk 0:01:16]} 27. Nxa5 {[%clk 0:00:41]}  Ra6 {[%clk 0:01:06]} 28. Rc1 {[%clk 0:00:32]}  Rc8 {[%clk 0:01:04]} 29. Rxc5 {[%clk 0:00:26]}  Rxa5 {[%clk 0:01:02]} 30. Bxa5 {[%clk 0:00:22]}  Rxc5 {[%clk 0:01:03]} 31. Bxb4 {[%clk 0:00:22]}  Rc2+ {[%clk 0:01:03]} 32. Bd2 {[%clk 0:00:21]}  Kf7 {[%clk 0:01:03]} 33. b4 {[%clk 0:00:21]}  Ke6 {[%clk 0:01:03]} 34. Kd3 {[%clk 0:00:21]}  Ra2 {[%clk 0:01:00]} 35. f4 {[%clk 0:00:19]}  Ra3+ {[%clk 0:00:55]} 36. Ke4 {[%clk 0:00:19]}  Rb3 {[%clk 0:00:53]} 37. g4 {[%clk 0:00:18]}  Rb2 {[%clk 0:00:50]} 38. f5+ {[%clk 0:00:18]}  gxf5+ {[%clk 0:00:49]} 39. gxf5+ {[%clk 0:00:19]}  Kf7 {[%clk 0:00:50]} 40. Be1 {[%clk 0:00:15]}  Re2 {[%clk 0:00:50]} 41. Bg3 {[%clk 0:00:15]}  Rb2 {[%clk 0:00:48]} 42. Bd6 {[%clk 0:00:14]}  Rd2 {[%clk 0:00:46]} 43. Be5 {[%clk 0:00:13]}  Rf2 {[%clk 0:00:41]} 44. Bf4 {[%clk 0:00:13]}  Rf1 {[%clk 0:00:36]} 45. Kd3 {[%clk 0:00:11]}  Rc1 {[%clk 0:00:35]} 46. e4 {[%clk 0:00:11]}  Rh1 {[%clk 0:00:32]} 47. e5 {[%clk 0:00:10]}  Rxh3+ {[%clk 0:00:32]} 48. Ke4 {[%clk 0:00:10]}  Rb3 {[%clk 0:00:32]} 49. Bd2 {[%clk 0:00:09]}  h4 {[%clk 0:00:32]} 50. e6+ {[%clk 0:00:06]}  Ke8 {[%clk 0:00:30]} 51. f6 {[%clk 0:00:06]}  Rb1 {[%clk 0:00:18]} 52. f7+ {[%clk 0:00:06]}  Ke7 {[%clk 0:00:18]} 53. Bg5+ {[%clk 0:00:05]}  Kxe6 {[%clk 0:00:18]} 54. f8=Q {[%clk 0:00:06]}  Re1+ {[%clk 0:00:18]} 55. Be3 {[%clk 0:00:06]}  h3 {[%clk 0:00:18]} 56. Qf5+ {[%clk 0:00:06]}  Ke7 {[%clk 0:00:18]} 57. Qxh3 {[%clk 0:00:06]} 1-0


[Site "https://www.chess.com"]

[Event "Titled Tuesday Blitz May 03 Early 2022"]
[White "Jobava, Baadur"]
[Black "Mikhailovsky, Vladimir"]
[WhiteFideId "13601520"]
[BlackFideId "34105414"]
[WhiteElo "2617"]
[BlackElo "2349"]
[Result "1-0"]
[Round "08"]
[TimeControl "180+1"]
[Date "2022.05.03"]
[WhiteClock "0:01:09"]
[BlackClock "0:00:04"]

1. b3 {[%clk 0:03:00]}  d5 {[%clk 0:02:41]} 2. Bb2 {[%clk 0:03:01]}  Bg4 {[%clk 0:02:40]} 3. f3 {[%clk 0:03:01]}  Bh5 {[%clk 0:02:37]} 4. e3 {[%clk 0:03:02]}  Nd7 {[%clk 0:02:37]} 5. Nc3 {[%clk 0:03:01]}  c6 {[%clk 0:02:37]} 6. d4 {[%clk 0:03:01]}  Ngf6 {[%clk 0:02:35]} 7. g4 {[%clk 0:02:59]}  Bg6 {[%clk 0:02:34]} 8. h4 {[%clk 0:02:59]}  h5 {[%clk 0:02:33]} 9. g5 {[%clk 0:02:58]}  Ng8 {[%clk 0:02:32]} 10. Nge2 {[%clk 0:02:58]}  e5 {[%clk 0:02:18]} 11. Bh3 {[%clk 0:02:52]}  exd4 {[%clk 0:01:58]} 12. Qxd4 {[%clk 0:02:50]}  Ne7 {[%clk 0:01:58]} 13. Ng3 {[%clk 0:02:37]}  Qb6 {[%clk 0:01:44]} 14. O-O-O {[%clk 0:02:31]}  Nc5 {[%clk 0:01:16]} 15. f4 {[%clk 0:02:23]}  f5 {[%clk 0:00:57]} 16. gxf6 {[%clk 0:02:20]}  gxf6 {[%clk 0:00:58]} 17. Qxf6 {[%clk 0:02:18]}  Rg8 {[%clk 0:00:57]} 18. Nf5 {[%clk 0:01:52]}  Bxf5 {[%clk 0:00:23]} 19. Bxf5 {[%clk 0:01:53]}  Bg7 {[%clk 0:00:22]} 20. Qg5 {[%clk 0:01:52]}  Nd7 {[%clk 0:00:07]} 21. Qxh5+ {[%clk 0:01:50]}  Kd8 {[%clk 0:00:07]} 22. Kb1 {[%clk 0:01:30]}  Nxf5 {[%clk 0:00:05]} 23. Qxf5 {[%clk 0:01:27]}  Rf8 {[%clk 0:00:06]} 24. Nxd5 {[%clk 0:01:15]}  Rxf5 {[%clk 0:00:03]} 25. Nxb6 {[%clk 0:01:14]}  Bxb2 {[%clk 0:00:03]} 26. Rxd7+ {[%clk 0:01:09]}  Ke8 {[%clk 0:00:02]} 27. Kxb2 {[%clk 0:01:10]}  axb6 {[%clk 0:00:02]} 28. Rxb7 {[%clk 0:01:10]}  Rfa5 {[%clk 0:00:03]} 29. a4 {[%clk 0:01:09]}  b5 {[%clk 0:00:04]} 30. Rg1 {[%clk 0:01:09]} 1-0


[Site "https://www.chess.com"]

[Event "Titled Tuesday Blitz May 03 Early 2022"]
[White "Johnson, Ben"]
[Black "Bongo Akanga Ndjila, Barthelemy"]
[WhiteFideId "2010917"]
[BlackFideId "10609431"]
[WhiteElo "2192"]
[BlackElo "1768"]
[Result "1-0"]
[Round "08"]
[TimeControl "180+1"]
[Date "2022.05.03"]
[WhiteClock "0:01:53"]
[BlackClock "0:01:59"]

1. Nf3 {[%clk 0:03:00]}  Nf6 {[%clk 0:02:38]} 2. c4 {[%clk 0:02:59]}  g6 {[%clk 0:02:36]} 3. b3 {[%clk 0:02:59]}  Bg7 {[%clk 0:02:37]} 4. Bb2 {[%clk 0:03:00]}  O-O {[%clk 0:02:35]} 5. g3 {[%clk 0:03:00]}  d6 {[%clk 0:02:29]} 6. d4 {[%clk 0:03:01]}  Nbd7 {[%clk 0:02:29]} 7. Bg2 {[%clk 0:03:00]}  Re8 {[%clk 0:02:28]} 8. O-O {[%clk 0:03:00]}  e5 {[%clk 0:02:28]} 9. dxe5 {[%clk 0:03:00]}  dxe5 {[%clk 0:02:28]} 10. Nxe5 {[%clk 0:02:40]}  Ng4 {[%clk 0:02:21]} 11. Nxg4 {[%clk 0:02:19]}  Bxb2 {[%clk 0:02:18]} 12. Nd2 {[%clk 0:02:19]}  Bxa1 {[%clk 0:02:16]} 13. Qxa1 {[%clk 0:02:19]}  h5 {[%clk 0:02:12]} 14. Nh6+ {[%clk 0:02:15]}  Kh7 {[%clk 0:02:00]} 15. Nxf7 {[%clk 0:01:56]}  Qe7 {[%clk 0:01:59]} 16. Nf3 {[%clk 0:01:56]}  Qxf7 {[%clk 0:01:59]} 17. Ng5+ {[%clk 0:01:56]}  Kg8 {[%clk 0:01:58]} 18. Nxf7 {[%clk 0:01:56]}  Kxf7 {[%clk 0:01:59]} 19. e3 {[%clk 0:01:53]} 1-0


[Site "https://www.chess.com"]

[Event "Titled Tuesday Blitz May 03 Early 2022"]
[White "Jumabayev, Rinat"]
[Black "Matinian, Nikita"]
[WhiteFideId "13702661"]
[BlackFideId "24129100"]
[WhiteElo "2561"]
[BlackElo "2422"]
[Result "0-1"]
[Round "08"]
[TimeControl "180+1"]
[Date "2022.05.03"]
[WhiteClock "0:00:05"]
[BlackClock "0:00:58"]

1. d4 {[%clk 0:03:00]}  Nf6 {[%clk 0:02:59]} 2. c4 {[%clk 0:03:01]}  g6 {[%clk 0:02:59]} 3. Nf3 {[%clk 0:03:01]}  Bg7 {[%clk 0:02:59]} 4. g3 {[%clk 0:03:02]}  O-O {[%clk 0:02:59]} 5. Bg2 {[%clk 0:03:03]}  d6 {[%clk 0:03:00]} 6. O-O {[%clk 0:03:03]}  Nc6 {[%clk 0:03:01]} 7. Nc3 {[%clk 0:03:04]}  e5 {[%clk 0:03:01]} 8. d5 {[%clk 0:03:03]}  Nb8 {[%clk 0:03:01]} 9. e4 {[%clk 0:03:03]}  a5 {[%clk 0:03:01]} 10. Be3 {[%clk 0:02:59]}  Na6 {[%clk 0:02:56]} 11. a3 {[%clk 0:02:56]}  Bd7 {[%clk 0:02:51]} 12. Rb1 {[%clk 0:02:55]}  a4 {[%clk 0:02:48]} 13. h3 {[%clk 0:02:43]}  Qe8 {[%clk 0:02:47]} 14. Ne1 {[%clk 0:02:34]}  Nh5 {[%clk 0:02:38]} 15. Nd3 {[%clk 0:02:30]}  f5 {[%clk 0:02:36]} 16. Qd2 {[%clk 0:02:21]}  b6 {[%clk 0:02:21]} 17. Rbe1 {[%clk 0:01:54]}  Nc5 {[%clk 0:02:16]} 18. exf5 {[%clk 0:01:46]}  gxf5 {[%clk 0:02:06]} 19. Ne2 {[%clk 0:01:27]}  Qg6 {[%clk 0:01:58]} 20. Nxc5 {[%clk 0:01:16]}  bxc5 {[%clk 0:01:57]} 21. f4 {[%clk 0:01:02]}  Rab8 {[%clk 0:01:52]} 22. Rb1 {[%clk 0:00:39]}  Nxg3 {[%clk 0:01:51]} 23. Nxg3 {[%clk 0:00:39]}  Qxg3 {[%clk 0:01:51]} 24. Kh1 {[%clk 0:00:38]}  Rb3 {[%clk 0:01:46]} 25. Rf3 {[%clk 0:00:38]}  Qh4 {[%clk 0:01:44]} 26. fxe5 {[%clk 0:00:27]}  Bxe5 {[%clk 0:01:35]} 27. Bg5 {[%clk 0:00:27]}  Qh5 {[%clk 0:01:31]} 28. Rxb3 {[%clk 0:00:24]}  axb3 {[%clk 0:01:32]} 29. Rf1 {[%clk 0:00:20]}  Kh8 {[%clk 0:01:26]} 30. Bf4 {[%clk 0:00:18]}  Bd4 {[%clk 0:01:20]} 31. Qd3 {[%clk 0:00:18]}  Rg8 {[%clk 0:01:13]} 32. Qxb3 {[%clk 0:00:16]}  Rxg2 {[%clk 0:01:03]} 33. Kxg2 {[%clk 0:00:04]}  Qe2+ {[%clk 0:01:02]} 34. Kg3 {[%clk 0:00:04]}  Qxf1 {[%clk 0:00:59]} 35. Qb8+ {[%clk 0:00:05]}  Kg7 {[%clk 0:00:58]} 0-1


[Site "https://www.chess.com"]

[Event "Titled Tuesday Blitz May 03 Early 2022"]
[White "Kazakouski, Valery"]
[Black "Sokolovsky, Yahli"]
[WhiteFideId "13507443"]
[BlackFideId "2820242"]
[WhiteElo "2524"]
[BlackElo "1770"]
[Result "1-0"]
[Round "08"]
[TimeControl "180+1"]
[Date "2022.05.03"]
[WhiteClock "0:01:30"]
[BlackClock "0:00:02"]

1. d4 {[%clk 0:02:57]}  d6 {[%clk 0:03:00]} 2. e4 {[%clk 0:02:56]}  g6 {[%clk 0:02:57]} 3. Nc3 {[%clk 0:02:56]}  Bg7 {[%clk 0:02:57]} 4. g3 {[%clk 0:02:57]}  b6 {[%clk 0:02:56]} 5. Bg2 {[%clk 0:02:57]}  Bb7 {[%clk 0:02:56]} 6. Nge2 {[%clk 0:02:58]}  Nf6 {[%clk 0:02:55]} 7. O-O {[%clk 0:02:57]}  e6 {[%clk 0:02:25]} 8. Bg5 {[%clk 0:02:37]}  Qc8 {[%clk 0:01:55]} 9. h3 {[%clk 0:02:23]}  Nbd7 {[%clk 0:01:52]} 10. Qd2 {[%clk 0:02:22]}  O-O {[%clk 0:01:29]} 11. Rad1 {[%clk 0:02:20]}  e5 {[%clk 0:01:11]} 12. Be3 {[%clk 0:02:19]}  exd4 {[%clk 0:01:11]} 13. Bxd4 {[%clk 0:02:19]}  Ne5 {[%clk 0:01:08]} 14. b3 {[%clk 0:02:12]}  Nc6 {[%clk 0:00:47]} 15. Be3 {[%clk 0:02:12]}  Re8 {[%clk 0:00:47]} 16. g4 {[%clk 0:02:12]}  Ne5 {[%clk 0:00:42]} 17. f4 {[%clk 0:02:08]}  Nc6 {[%clk 0:00:30]} 18. Ng3 {[%clk 0:02:03]}  Nd7 {[%clk 0:00:29]} 19. Nd5 {[%clk 0:01:57]}  Ne7 {[%clk 0:00:24]} 20. c4 {[%clk 0:01:50]}  Nc5 {[%clk 0:00:22]} 21. Bd4 {[%clk 0:01:48]}  Bxd5 {[%clk 0:00:15]} 22. cxd5 {[%clk 0:01:40]}  f6 {[%clk 0:00:14]} 23. Qb2 {[%clk 0:01:37]}  Nd7 {[%clk 0:00:11]} 24. g5 {[%clk 0:01:33]}  Rf8 {[%clk 0:00:12]} 25. h4 {[%clk 0:01:33]}  Qe8 {[%clk 0:00:11]} 26. Bh3 {[%clk 0:01:32]}  Nc5 {[%clk 0:00:02]} 27. gxf6 {[%clk 0:01:32]}  Bxf6 {[%clk 0:00:02]} 28. Bxf6 {[%clk 0:01:32]}  Qf7 {[%clk 0:00:02]} 29. Bd4 {[%clk 0:01:30]} 1-0


[Site "https://www.chess.com"]